fUSD/lending_fUSD_20250814
["ID","MTS","AMOUNT","RATE_DAILY","PERIOD"]
[379144469,1755165041893,-493488.41,0.000368,14]
[379144470,1755165041903,-151.455119,0.000368,7]
[379144471,1755165041912,-186.071851,0.000368,7]
[379144472,1755165041921,-186.071851,0.000368,7]
[379144473,1755165041931,-4155.371538,0.000368,7]
[379144474,1755165041940,-4155.371538,0.000368,7]
[379144475,1755165041950,-2315.637181,0.000368,7]
[379144476,1755165041959,-2315.637181,0.000368,7]
[379144477,1755165041968,-73074.6,0.000368,2]
[379144478,1755165041978,-151.0,0.000368,7]
[379144479,1755165041987,-151.0,0.000368,7]
[379144480,1755165041996,-151.0,0.000368,7]
[379144481,1755165042006,-151.0,0.000368,7]
[379144482,1755165042015,-151.0,0.000368,7]
[379144483,1755165042027,-1338.740461,0.000368,7]
[379144484,1755165042036,-1338.740461,0.000368,7]
[379144485,1755165042046,-214.54419,0.000368,7]
[379144486,1755165042055,-214.54419,0.000368,7]
[379144487,1755165042066,-200.891578,0.000368,7]
[379144488,1755165042075,-200.891578,0.000368,7]
[379144489,1755165042084,-827.268822,0.000368,7]
[379144490,1755165042094,-827.268822,0.000368,7]
[379144491,1755165042103,-151.0,0.000368,7]
[379144492,1755165042114,-151.0,0.000368,7]
[379144493,1755165042123,-151.0,0.000368,7]
[379144494,1755165042133,-151.0,0.000368,7]
[379144495,1755165042142,-151.0,0.000368,7]
[379144496,1755165042152,-347.53656,0.000368,7]
[379144497,1755165042161,-347.53656,0.000368,7]
[379144498,1755165042170,-253.53589,0.000368,7]
[379144499,1755165042179,-253.53589,0.000368,7]
[379144500,1755165042188,-480.675789,0.000368,7]
[379144501,1755165042197,-480.675789,0.000368,7]
[379144502,1755165042207,-405.284895,0.000368,7]
[379144503,1755165042216,-405.284895,0.000368,7]
[379144504,1755165042225,-151.603769,0.000368,7]
[379144505,1755165042235,-447.7499791,0.0003695,2]
[379144506,1755165042245,-19472.88,0.00037,14]
[379144507,1755165042254,-458.13769775,0.00037,7]
[379144508,1755165042263,-7132.16,0.000371,30]
[379144509,1755165042272,-525.13886437,0.00037118,2]
[379144510,1755165042282,-534.72,0.00037133,30]
[379144511,1755165042291,-1000.0,0.000372,7]
[379144512,1755165042300,-183.87172437,0.000372,120]
[379144513,1755165042309,-164.46,0.00037233,2]
[379144514,1755165042319,-300.0,0.00037239,2]
[379144515,1755165042328,-600.0,0.00037239,2]
[379144516,1755165042337,-151.0,0.00037239,2]
[379144517,1755165042348,-151.0,0.00037239,2]
[379144518,1755165042358,-151.0,0.00037239,2]
[379144519,1755165042368,-500.0,0.00037239,2]
[379144520,1755165042378,-151.0,0.00037239,2]
[379144521,1755165042387,-500.0,0.00037239,2]
[379144522,1755165042397,-151.0,0.00037239,2]
[379144523,1755165042406,-500.0,0.00037239,2]
[379144524,1755165042415,-250.0,0.00037239,2]
[379144525,1755165042425,-160.0,0.00037239,2]
[379144526,1755165042435,-1000.0,0.00037239,2]
[379144527,1755165042444,-151.0,0.00037239,2]
[379144528,1755165042454,-500.0,0.00037239,2]
[379144529,1755165042464,-250.0,0.00037239,2]
[379144530,1755165042473,-1000.0,0.00037239,2]
[379144531,1755165042483,-151.0,0.00037239,2]
[379144532,1755165042492,-500.0,0.00037239,2]
[379144533,1755165042502,-1000.0,0.00037239,2]
[379144534,1755165042511,-250.0,0.00037239,2]
[379144535,1755165042521,-151.0,0.00037239,2]
[379144536,1755165042530,-500.0,0.00037239,2]
[379144537,1755165042540,-1000.0,0.00037239,2]
[379144538,1755165042550,-250.0,0.00037239,2]
[379144539,1755165042559,-151.0,0.00037239,2]
[379144540,1755165042570,-500.0,0.00037239,2]
[379144541,1755165042579,-1000.0,0.00037239,2]
[379144542,1755165042589,-250.0,0.00037239,2]
[379144543,1755165042598,-151.0,0.00037239,2]
[379144544,1755165042608,-500.0,0.00037239,2]
[379144545,1755165042618,-1000.0,0.00037239,2]
[379144546,1755165042627,-250.0,0.00037239,2]
[379144547,1755165042637,-151.0,0.00037239,2]
[379144548,1755165042647,-500.0,0.00037239,2]
[379144549,1755165042656,-1000.0,0.00037239,2]
[379144550,1755165042665,-151.0,0.00037239,2]
[379144551,1755165042675,-250.0,0.00037239,2]
[379144552,1755165042684,-262.32834613,0.00037239,2]
[379144553,1755165042694,-1000.0,0.00037239,2]
[379144554,1755165042703,-267.61081672,0.00037239,2]
[379144555,1755165042713,-250.0,0.00037239,2]
[379144556,1755165042723,-1000.0,0.00037239,2]
[379144557,1755165042733,-250.0,0.00037239,2]
[379144558,1755165042742,-1000.0,0.00037239,2]
[379144559,1755165042752,-222.26571653,0.00037239,2]
[379144560,1755165042761,-1000.0,0.00037239,2]
[379144561,1755165042770,-151.0,0.00037239,2]
[379144562,1755165042779,-500.0,0.00037239,2]
[379144563,1755165042789,-500.0,0.00037239,2]
[379144564,1755165042798,-500.0,0.00037239,2]
[379144565,1755165042808,-500.0,0.00037239,2]
[379144566,1755165042818,-200.0,0.00037239,2]
[379144567,1755165042827,-500.0,0.00037239,2]
[379144568,1755165042837,-200.0,0.00037239,2]
[379144569,1755165042847,-594.87373683,0.00037239,2]
[379144570,1755165042856,-200.0,0.00037239,2]
[379144571,1755165042865,-200.0,0.00037239,2]
[379144572,1755165042875,-200.0,0.00037239,2]
[379144573,1755165042885,-1000.0,0.00037239,2]
[379144574,1755165042895,-200.0,0.00037239,2]
[379144575,1755165042905,-200.0,0.00037239,2]
[379144576,1755165042914,-1000.0,0.00037239,2]
[379144577,1755165042923,-1000.0,0.00037239,2]
[379144578,1755165042932,-200.0,0.00037239,2]
[379144579,1755165042942,-1000.0,0.00037239,2]
[379144580,1755165042952,-200.0,0.00037239,2]
[379144581,1755165042962,-1000.0,0.00037239,2]
[379144582,1755165042972,-200.0,0.00037239,2]
[379144583,1755165042981,-1000.0,0.00037239,2]
[379144584,1755165042991,-200.0,0.00037239,2]
[379144585,1755165043001,-1000.0,0.00037239,2]
[379144586,1755165043011,-500.0,0.00037239,2]
[379144587,1755165043024,-200.0,0.00037239,2]
[379144589,1755165043034,-500.0,0.00037239,2]
[379144591,1755165043043,-500.0,0.00037239,2]
[379144593,1755165043052,-1000.0,0.00037239,2]
[379144595,1755165043063,-200.0,0.00037239,2]
[379144596,1755165043073,-500.0,0.00037239,2]
[379144597,1755165043083,-500.0,0.00037239,2]
[379144598,1755165043092,-1000.0,0.00037239,2]
[379144599,1755165043103,-500.0,0.00037239,2]
[379144600,1755165043113,-200.0,0.00037239,2]
[379144601,1755165043123,-300.0,0.00037239,2]
[379144602,1755165043132,-500.0,0.00037239,2]
[379144603,1755165043142,-1000.0,0.00037239,2]
[379144604,1755165043151,-500.0,0.00037239,2]
[379144605,1755165043161,-200.0,0.00037239,2]
[379144606,1755165043171,-300.0,0.00037239,2]
[379144607,1755165043180,-500.0,0.00037239,2]
[379144608,1755165043190,-200.0,0.00037239,2]
[379144609,1755165043199,-500.0,0.00037239,2]
[379144610,1755165043209,-1000.0,0.00037239,2]
[379144611,1755165043218,-1000.0,0.00037239,2]
[379144612,1755165043228,-153.14560926,0.00037239,2]
[379144613,1755165043237,-500.0,0.00037239,2]
[379144614,1755165043248,-500.0,0.00037239,2]
[379144615,1755165043258,-1000.0,0.00037239,2]
[379144616,1755165043268,-200.0,0.00037239,2]
[379144617,1755165043277,-500.0,0.00037239,2]
[379144618,1755165043286,-200.0,0.00037239,2]
[379144619,1755165043296,-1000.0,0.00037239,2]
[379144620,1755165043305,-314.91751931,0.00037239,2]
[379144621,1755165043315,-277.35679052,0.00037239,2]
[379144622,1755165043326,-200.0,0.00037239,2]
[379144623,1755165043338,-500.0,0.00037239,2]
[379144624,1755165043349,-1000.0,0.00037239,2]
[379144625,1755165043358,-500.0,0.00037239,2]
[379144626,1755165043368,-200.0,0.00037239,2]
[379144627,1755165043378,-1000.0,0.00037239,2]
[379144628,1755165043389,-500.0,0.00037239,2]
[379144629,1755165043398,-1000.0,0.00037239,2]
[379144630,1755165043407,-263.75466577,0.00037239,2]
[379144631,1755165043417,-500.0,0.00037239,2]
[379144632,1755165043427,-226.54423816,0.00037239,2]
[379144633,1755165043438,-9274.81107495,0.00037239,2]
[379144634,1755165043448,-1386.78395259,0.00037239,2]
[379144635,1755165043457,-151.0,0.00037239,2]
[379144636,1755165043467,-500.0,0.00037239,2]
[379144637,1755165043476,-500.0,0.00037239,2]
[379144638,1755165043486,-500.0,0.00037239,2]
[379144639,1755165043495,-1000.0,0.00037239,2]
[379144640,1755165043505,-500.0,0.00037239,2]
[379144641,1755165043649,-500.0,0.00037239,2]
[379144642,1755165043658,-1000.0,0.00037239,2]
[379144643,1755165043668,-381.18422056,0.00037239,2]
[379144644,1755165043677,-1000.0,0.00037239,2]
[379144645,1755165043686,-1000.0,0.00037239,2]
[379144646,1755165043696,-1000.0,0.00037239,2]
[379144647,1755165043705,-1000.0,0.00037239,2]
[379144648,1755165043714,-1000.0,0.00037239,2]
[379144649,1755165043724,-1000.0,0.00037239,2]
[379144650,1755165043733,-1000.0,0.00037239,2]
[379144651,1755165043743,-1000.0,0.00037239,2]
[379144652,1755165043753,-1000.0,0.00037239,2]
[379144654,1755165043762,-151.0,0.00037239,2]
[379144656,1755165043771,-986.087438,0.00037239,7]
[379144658,1755165043781,-986.087438,0.00037239,7]
[379144660,1755165043791,-723.0,0.00037278,7]
[379144662,1755165043800,-602.52774965,0.00037286,2]
[379144664,1755165043809,-9617.97908473,0.00037294,2]
[379144666,1755165043818,-1187.388777,0.00037294,7]
[379144668,1755165043829,-1187.388777,0.00037294,7]
[379144670,1755165043838,-151.0,0.00037294,7]
[379144672,1755165043847,-157.967609,0.00037294,7]
[379144674,1755165043857,-207.882122,0.00037294,7]
[379144676,1755165043866,-207.882122,0.00037294,7]
[379144678,1755165043875,-312.485162,0.00037294,7]
[379144680,1755165043884,-312.485162,0.00037294,7]
[379144682,1755165043894,-152.40966,0.00037294,7]
[379144684,1755165043903,-151.0,0.00037294,7]
[379144686,1755165043912,-151.0,0.00037294,7]
[379144688,1755165043921,-151.0,0.00037294,7]
[379144690,1755165043931,-218.24166,0.00037294,7]
[379144692,1755165043940,-2537.911642,0.00037294,7]
[379144694,1755165043949,-2537.911642,0.00037294,7]
[379144696,1755165043961,-1000.0,0.00037321,5]
[379144698,1755165043970,-1000.0,0.00037321,5]
[379144700,1755165043979,-2481.93,0.00037345,60]
[379144702,1755165043988,-9973.84431086,0.00037349,2]
[379144704,1755165043998,-151.0,0.00037349,7]
[379144706,1755165044006,-151.0,0.00037349,7]
[379144708,1755165044015,-356.427173,0.00037349,7]
[379144710,1755165044028,-356.427173,0.00037349,7]
[379144711,1755165044037,-419.740748,0.00037349,7]
[379144712,1755165044047,-419.740748,0.00037349,7]
[379144713,1755165044056,-369.592261,0.00037349,7]
[379144714,1755165044067,-369.592261,0.00037349,7]
[379144715,1755165044283,-471.440087,0.00037349,7]
[379144716,1755165044292,-471.440087,0.00037349,7]
[379144717,1755165044301,-198.926738,0.00037349,7]
[379144718,1755165044310,-198.926738,0.00037349,7]
[379144719,1755165044321,-151.0,0.00037349,7]
[379144720,1755165044332,-1194.58,0.00037375,60]
[379144721,1755165044342,-280.0,0.000374,30]
[379144722,1755165044351,-10342.87655036,0.00037404,2]
[379144723,1755165044361,-679.91663492,0.00037454,2]
[379144724,1755165044370,-10725.56298273,0.00037459,2]
[379144725,1755165044379,-1194.58,0.00037475,60]
[379144726,1755165044388,-11122.40881309,0.00037514,2]
[379144727,1755165044397,-11533.93793917,0.00037569,2]
[379144728,1755165044406,-1194.58,0.00037575,60]
[379144729,1755165044415,-757.3055202,0.00037622,2]
[379144730,1755165044424,-11960.69364292,0.00037624,2]
[379144731,1755165044433,-2337.0,0.0003765,3]
[379144732,1755165044443,-1194.58,0.00037675,60]
[379144733,1755165044452,-12403.23930771,0.00037679,2]
[379144734,1755165044462,-500.0,0.00037699,2]
[379144735,1755165044471,-12862.1591621,0.00037734,2]
[379144736,1755165044481,-1194.58,0.00037775,60]
[379144737,1755165044490,-600.0,0.00037787,2]
[379144738,1755165044499,-151.0,0.00037787,2]
[379144739,1755165044508,-151.0,0.00037787,2]
[379144740,1755165044518,-151.0,0.00037787,2]
[379144741,1755165044527,-13338.05905109,0.00037789,2]
[379144742,1755165044536,-834.69440548,0.00037789,2]
[379144743,1755165044546,-73074.6,0.000378,2]
[379144744,1755165044555,-151.0,0.000378,7]
[379144745,1755165044564,-151.0,0.000378,7]
[379144746,1755165044573,-151.0,0.000378,7]
[379144747,1755165044583,-356.30283,0.000378,7]
[379144748,1755165044592,-356.30283,0.000378,7]
[379144749,1755165044601,-151.0,0.000378,7]
[379144750,1755165044611,-151.0,0.000378,7]
[379144751,1755165044620,-151.0,0.000378,5]
[379144752,1755165044629,-151.0,0.000378,7]
[379144753,1755165044638,-309.458515,0.000378,7]
[379144754,1755165044648,-309.458515,0.000378,7]
[379144755,1755165044657,-1416.916706,0.000378,7]
[379144756,1755165044666,-1416.916706,0.000378,7]
[379144757,1755165044676,-442.2,0.00037802,6]
[379144758,1755165044685,-266.16,0.00037824,60]
[379144759,1755165044694,-1500.0,0.00037868,5]
[379144760,1755165044703,-249.01919163,0.00037868,5]
[379144761,1755165044711,-1194.58,0.00037875,60]
[379144762,1755165044720,-19472.88,0.000379,14]
[379144763,1755165044729,-638.0,0.00037926,2]
[379144764,1755165044740,-151.0,0.00037927,7]
[379144765,1755165044749,-151.0,0.00037927,7]
[379144766,1755165044757,-151.0,0.00037927,7]
[379144767,1755165044767,-151.0,0.00037927,7]
[379144768,1755165044776,-151.0,0.00037927,7]
[379144769,1755165044785,-2446.38367,0.00037927,7]
[379144770,1755165044794,-2446.38367,0.00037927,7]
[379144771,1755165044807,-912.08329075,0.00037957,2]
[379144772,1755165044815,-1194.58,0.00037975,60]
[379144773,1755165044824,-7132.16,0.00038,30]
[379144774,1755165044833,-1217.57586431,0.00038,120]
[379144775,1755165044842,-151.0,0.00038,120]
[379144776,1755165044852,-151.0,0.00038,30]
[379144777,1755165044861,-157.0,0.00038,120]
[379144778,1755165044870,-4000.0,0.00038,4]
[379144779,1755165044880,-1600.39,0.00038,5]
[379144780,1755165044889,-1194.58,0.00038075,60]
[379144781,1755165044899,-162.69,0.00038099,2]
[379144782,1755165044908,-989.47217603,0.00038125,2]
[379144783,1755165044917,-1194.58,0.00038175,60]
[379144784,1755165044929,-201.0,0.0003819,2]
[379144785,1755165044939,-501.0,0.00038266,14]
[379144786,1755165044948,-1194.58,0.00038275,60]
[379144787,1755165044957,-723.0,0.00038288,2]
[379144788,1755165044966,-1066.8610613,0.00038293,2]
[379144789,1755165044976,-161.75804296,0.000383,11]
[379144790,1755165044985,-600.0,0.00038335,2]
[379144791,1755165044994,-158.15212485,0.00038335,2]
[379144792,1755165045003,-151.64441662,0.00038335,2]
[379144793,1755165045012,-151.0,0.00038335,2]
[379144794,1755165045025,-273.64706425,0.00038356,2]
[379144795,1755165045034,-150.0,0.00038362,120]
[379144796,1755165045043,-1194.58,0.00038375,120]
[379144797,1755165045052,-320609.29464869,0.000384,14]
[379144807,1755165046008,-172879.11535131,0.000384,14]
[379144809,1755165046019,-186.071851,0.000384,30]
[379144811,1755165046030,-186.071851,0.000384,30]
[379144813,1755165046039,-4155.371538,0.000384,30]
[379144814,1755165046049,-4155.371538,0.000384,30]
[379144816,1755165046058,-2315.637181,0.000384,30]
[379144818,1755165046069,-2315.637181,0.000384,30]
[379144820,1755165046078,-151.0,0.000384,30]
[379144821,1755165046088,-151.0,0.000384,30]
[379144822,1755165046098,-151.0,0.000384,30]
[379144823,1755165046109,-151.0,0.000384,30]
[379144824,1755165046118,-166.392888,0.000384,30]
[379144825,1755165046127,-253.53589,0.000384,30]
[379144826,1755165046136,-253.53589,0.000384,30]
[379144827,1755165046145,-480.675789,0.000384,30]
[379144828,1755165046154,-480.675789,0.000384,30]
[379144829,1755165046164,-405.284895,0.000384,30]
[379144830,1755165046173,-405.284895,0.000384,30]
[379144831,1755165046183,-2000.0,0.00038416,5]
[379144832,1755165046192,-2295.65915868,0.00038429,120]
[379144833,1755165046201,-1000.0,0.00038454,7]
[379144834,1755165046210,-1144.24994658,0.00038461,2]
[379144835,1755165046220,-1194.58,0.00038475,120]
[379144836,1755165046229,-168.0,0.00038497,7]
[379144837,1755165046238,-491.18847748,0.000385,30]
[379144838,1755165046247,-1600.39,0.00038547,5]
[379144839,1755165046256,-1194.58,0.00038575,120]
[379144840,1755165046265,-311.1,0.00038608,2]
[379144841,1755165046276,-160.0,0.00038608,2]
[379144842,1755165046285,-287.61899177,0.00038608,2]
[379144843,1755165046294,-1221.63883185,0.00038629,2]
[379144844,1755165046303,-7709.8,0.0003863,120]
[379144845,1755165046312,-151.0,0.0003863,90]
[379144846,1755165046322,-165.84,0.00038658,2]
[379144847,1755165046331,-537.09,0.00038658,2]
[379144848,1755165046342,-165.19,0.00038658,2]
[379144849,1755165046351,-1194.58,0.00038675,120]
[379144850,1755165046361,-73074.6,0.000387,30]
[379144851,1755165046371,-151.917047,0.000387,30]
[379144852,1755165046381,-157.391826,0.000387,30]
[379144853,1755165046391,-1187.388777,0.000387,30]
[379144854,1755165046400,-1187.388777,0.000387,30]
[379144855,1755165046409,-356.427173,0.000387,30]
[379144856,1755165046418,-356.427173,0.000387,30]
[379144857,1755165046427,-151.0,0.000387,30]
[379144858,1755165046436,-207.882122,0.000387,30]
[379144859,1755165046446,-207.882122,0.000387,30]
[379144860,1755165046455,-312.485162,0.000387,30]
[379144861,1755165046466,-312.485162,0.000387,30]
[379144862,1755165046476,-419.740748,0.000387,30]
[379144863,1755165046485,-419.740748,0.000387,30]
[379144864,1755165046495,-151.0,0.000387,30]
[379144865,1755165046504,-151.0,0.000387,30]
[379144866,1755165046514,-151.0,0.000387,30]
[379144867,1755165046523,-986.087438,0.000387,30]
[379144868,1755165046532,-986.087438,0.000387,30]
[379144869,1755165046542,-369.592261,0.000387,30]
[379144870,1755165046552,-369.592261,0.000387,30]
[379144872,1755165046562,-471.440087,0.000387,30]
[379144874,1755165046572,-471.440087,0.000387,30]
[379144875,1755165046581,-2537.911642,0.000387,30]
[379144876,1755165046591,-198.926738,0.000387,30]
[379144877,1755165046601,-2537.911642,0.000387,30]
[379144878,1755165046611,-198.926738,0.000387,30]
[379144879,1755165046622,-151.0,0.000387,30]
[379144880,1755165046632,-150.0,0.00038743,2]
[379144881,1755165046642,-1194.58,0.00038775,120]
[379144882,1755165046652,-1299.02771713,0.00038796,2]
[379144883,1755165046662,-19472.88,0.000388,14]
[379144884,1755165046672,-150.0,0.00038834,2]
[379144885,1755165046682,-638.0,0.00038867,2]
[379144886,1755165046692,-1194.58,0.00038875,120]
[379144887,1755165046702,-600.0,0.00038883,2]
[379144888,1755165046712,-151.0,0.00038883,2]
[379144889,1755165046723,-291.9208,0.00038888,30]
[379144890,1755165046733,-7132.16,0.000389,30]
[379144891,1755165046743,-1000.0,0.00038903,7]
[379144892,1755165046754,-1376.41660241,0.00038964,2]
[379144893,1755165046763,-1572.19647559,0.00038964,5]
[379144894,1755165046774,-1194.58,0.00038975,120]
[379144895,1755165046783,-726.89,0.00038996,2]
[379144896,1755165046793,-168.0,0.00038997,2]
[379144897,1755165046803,-52042.89853581,0.00039,5]
[379144898,1755165046813,-7790.29,0.00039,120]
[379144899,1755165046823,-458.13769775,0.00039,30]
[379144900,1755165046832,-168.0,0.0003907,120]
[379144901,1755165046842,-1194.58,0.00039075,120]
[379144902,1755165046851,-1600.39,0.00039095,5]
[379144903,1755165046861,-1453.80548768,0.00039132,2]
[379144904,1755165046871,-1194.58,0.00039175,120]
[379144905,1755165046880,-1000.0,0.00039178,120]
[379144906,1755165046891,-1000.0,0.00039178,120]
[379144907,1755165046901,-1000.0,0.00039178,120]
[379144908,1755165046911,-1000.0,0.00039178,120]
[379144909,1755165046921,-1000.0,0.00039178,120]
[379144910,1755165046931,-1000.0,0.00039178,120]
[379144911,1755165046941,-1000.0,0.00039178,120]
[379144912,1755165046951,-1000.0,0.00039178,120]
[379144913,1755165046961,-1000.0,0.00039178,120]
[379144914,1755165046971,-405.42143997,0.00039178,120]
[379144915,1755165046981,-150.0,0.00039179,2]
[379144916,1755165046991,-876.98,0.00039258,120]
[379144917,1755165047001,-151.0,0.00039271,30]
[379144918,1755165047010,-1338.740461,0.00039271,30]
[379144919,1755165047023,-151.0,0.00039271,30]
[379144920,1755165047033,-1338.740461,0.00039271,30]
[379144921,1755165047043,-214.54419,0.00039271,30]
[379144922,1755165047053,-214.54419,0.00039271,30]
[379144923,1755165047064,-200.891578,0.00039271,30]
[379144924,1755165047074,-200.891578,0.00039271,30]
[379144925,1755165047084,-827.268822,0.00039271,30]
[379144926,1755165047095,-827.268822,0.00039271,30]
[379144927,1755165047105,-151.0,0.00039271,30]
[379144928,1755165047115,-151.0,0.00039271,30]
[379144929,1755165047124,-151.0,0.00039271,30]
[379144930,1755165047134,-151.0,0.00039271,30]
[379144931,1755165047144,-151.0,0.00039271,30]
[379144932,1755165047154,-2446.38367,0.00039271,30]
[379144933,1755165047164,-151.0,0.00039271,30]
[379144934,1755165047173,-2446.38367,0.00039271,30]
[379144935,1755165047183,-151.0,0.00039271,30]
[379144936,1755165047193,-151.0,0.00039271,30]
[379144937,1755165047203,-347.53656,0.00039271,30]
[379144938,1755165047213,-347.53656,0.00039271,30]
[379144939,1755165047222,-1194.58,0.00039275,120]
[379144940,1755165047232,-1531.19437296,0.000393,2]
[379144941,1755165047242,-168.0,0.00039313,2]
[379144942,1755165047252,-300.0,0.00039339,2]
[379144943,1755165047262,-168.0,0.00039344,120]
[379144944,1755165047272,-1194.58,0.00039375,120]
[379144945,1755165047282,-1414.0,0.00039426,7]
[379144946,1755165047292,-600.0,0.00039431,2]
[379144947,1755165047303,-151.0,0.00039431,2]
[379144948,1755165047313,-337.00220559,0.00039456,30]
[379144949,1755165047323,-1608.58325823,0.00039468,2]
[379144950,1755165047333,-1194.58,0.00039475,120]
[379144951,1755165047343,-3556.83093112,0.00039476,2]
[379144952,1755165047353,-150.0,0.00039477,2]
[379144953,1755165047363,-1181.2,0.00039479,2]
[379144954,1755165047373,-168.0,0.00039492,2]
[379144955,1755165047383,-167071.84340167,0.000395,14]
[379144956,1755165047414,-6964.36,0.000395,14]
[379144957,1755165047548,-2651.18713692,0.000395,14]
[379144958,1755165047815,-1570.53525078,0.000395,14]
[379144960,1755165048014,-2550.6866527,0.000395,14]
[379144961,1755165048878,-312679.79755793,0.000395,14]
[379144962,1755165048888,-186.071851,0.000395,30]
[379144963,1755165048899,-186.071851,0.000395,30]
[379144964,1755165048909,-4155.371538,0.000395,30]
[379144965,1755165048920,-4155.371538,0.000395,30]
[379144966,1755165048930,-2315.637181,0.000395,30]
[379144967,1755165048940,-2315.637181,0.000395,30]
[379144968,1755165048950,-151.0,0.000395,30]
[379144969,1755165048960,-151.0,0.000395,30]
[379144970,1755165048970,-151.0,0.000395,30]
[379144971,1755165048980,-151.0,0.000395,30]
[379144972,1755165048990,-152.36634,0.000395,30]
[379144973,1755165049000,-151.0,0.000395,30]
[379144974,1755165049011,-151.0,0.000395,30]
[379144975,1755165049023,-356.30283,0.000395,30]
[379144976,1755165049035,-356.30283,0.000395,30]
[379144977,1755165049488,-151.0,0.000395,30]
[379144978,1755165049498,-151.0,0.000395,30]
[379144979,1755165049508,-257.0,0.000395,5]
[379144980,1755165049518,-151.0,0.000395,7]
[379144981,1755165049529,-309.458515,0.000395,30]
[379144982,1755165049539,-309.458515,0.000395,30]
[379144983,1755165049549,-1416.916706,0.000395,30]
[379144984,1755165049559,-1416.916706,0.000395,30]
[379144985,1755165049569,-5888.0,0.00039502,2]
[379144986,1755165049579,-1194.58,0.00039575,120]
[379144987,1755165049590,-109120.74935422,0.00039576,2]
[379144988,1755165049600,-1254.0,0.00039576,2]
[379144989,1755165049610,-820.0,0.00039576,2]
[379144990,1755165049620,-3369.0,0.00039576,2]
[379144991,1755165049630,-157.247,0.00039576,2]
[379144992,1755165049640,-2028.0,0.00039576,2]
[379144993,1755165049650,-565.0,0.00039576,2]
[379144994,1755165049659,-1296.0,0.00039576,2]
[379144995,1755165049669,-1655.0,0.00039576,2]
[379144996,1755165049679,-981.0,0.00039576,2]
[379144997,1755165049689,-642.708,0.00039576,2]
[379144998,1755165049699,-903.806,0.00039576,2]
[379144999,1755165049709,-3397.295,0.00039576,2]
[379145000,1755165049719,-392.609,0.00039576,2]
[379145001,1755165049728,-4149.0,0.00039576,2]
[379145002,1755165049738,-840.71,0.00039576,2]
[379145003,1755165049749,-21478.0,0.00039576,2]
[379145004,1755165049759,-6086.0,0.00039576,2]
[379145005,1755165049768,-253.53589,0.00039576,30]
[379145006,1755165049777,-253.53589,0.00039576,30]
[379145007,1755165049787,-480.675789,0.00039576,30]
[379145008,1755165049797,-480.675789,0.00039576,30]
[379145009,1755165049807,-405.284895,0.00039576,30]
[379145010,1755165049815,-405.284895,0.00039576,30]
[379145011,1755165049825,-73074.6,0.000396,30]
[379145012,1755165049835,-150.0,0.00039602,30]
[379145013,1755165049845,-150.0,0.00039602,30]
[379145014,1755165049854,-168.0,0.00039613,2]
[379145015,1755165049863,-1685.97214351,0.00039635,2]
[379145016,1755165049873,-1600.39,0.00039643,5]
[379145017,1755165049882,-211.22,0.00039654,2]
[379145018,1755165049891,-1414.0,0.0003967,2]
[379145019,1755165049901,-23885.59,0.00039675,15]